bitfinex-derivatives/quotes_BNBF0:USTF0_20250112
["timestamp","ask_amount","ask_price","bid_price","bid_amount"]
[1736701270570,1.07781215,695.01,693.82,2.79435957]
[1736701271475,0.2877615,695.02,693.82,2.79435957]
[1736701271476,0.2877615,695.02,693.83,3.00696212]
[1736701271672,0.2877615,695.02,693.84,2.79435957]
[1736701272275,0.2877615,695.02,693.84,1.74002416]
[1736701272477,0.2877615,695.02,693.84,2.79414732]
[1736701272675,0.2877615,695.02,693.84,1.74002416]
[1736701273071,0.2877615,695.02,693.81,0.28826335]
[1736701275071,1.36557365,695.02,693.81,0.28826335]
[1736701276374,1.36557365,695.02,693.81,3.29522547]
[1736701276574,1.36557365,695.02,693.82,2.79414334]
[1736701276773,1.07781215,695.01,693.82,2.79414334]
[1736701277278,1.07781215,695.01,693.82,1.74002416]
[1736701277479,1.36557365,695.02,693.82,1.74002416]
[1736701278176,1.36557365,695.02,693.81,0.28826335]
[1736701278778,1.07781215,695.0,693.81,0.28826335]
[1736701279174,0.28777392,694.99,693.81,0.28826335]
[1736701279374,1.07781215,694.98,693.81,0.28826335]
[1736701279875,1.36559021,694.98,693.81,0.28826335]
[1736701280374,0.28777806,694.98,693.81,0.28826335]
[1736701281177,1.36559021,694.98,693.81,0.28826335]
[1736701282774,0.28777806,694.98,693.81,0.28826335]
[1736701283679,1.36559021,694.98,693.81,0.28826335]
[1736701285483,0.28777806,694.98,693.81,0.28826335]
[1736701286678,1.36559021,694.98,693.81,0.28826335]
[1736701287083,0.26460263,694.97,693.81,0.28826335]
[1736701287282,0.28778634,694.96,693.81,0.28826335]
[1736701287582,0.26460263,694.95,693.81,0.28826335]
[1736701287783,1.07781215,694.86,693.81,0.28826335]
[1736701288682,1.07781215,694.87,693.81,0.28826335]
[1736701289479,1.07781215,694.89,693.81,0.28826335]
[1736701290483,1.07781215,694.9,693.81,0.28826335]
[1736701291483,1.07781215,694.91,693.81,0.28826335]
[1736701291683,0.2646305,694.9,693.81,0.28826335]
[1736701293584,0.28781119,694.9,693.81,0.28826335]
[1736701293884,0.26463204,694.89,693.81,0.28826335]
[1736701295680,0.28781119,694.9,693.81,0.28826335]
[1736701296983,0.2646336,694.89,693.81,0.28826335]
[1736701299388,0.28781119,694.9,693.81,0.28826335]
[1736701299688,0.26463229,694.89,693.81,0.28826335]
[1736701301387,0.28781119,694.9,693.81,0.28826335]
[1736701313796,1.36562334,694.9,693.81,0.28826335]
[1736701314799,1.07781215,694.89,693.81,0.28826335]
[1736701315899,1.07781215,694.87,693.81,0.28826335]
[1736701317097,1.07781215,694.89,693.81,0.28826335]
[1736701317700,0.28781119,694.9,693.81,0.28826335]
[1736701318700,1.07781215,694.89,693.81,0.28826335]
[1736701319398,0.28781119,694.9,693.81,0.28826335]
[1736701321607,1.36562334,694.9,693.81,0.28826335]
[1736701322904,0.28781119,694.9,693.81,0.28826335]
[1736701369741,0.28781119,694.9,693.81,3.28504039]
[1736701369939,0.28781119,694.9,693.82,2.79504371]
[1736701371442,0.28781119,694.9,693.83,2.99677704]
[1736701371636,0.28781119,694.9,693.84,2.79504371]
[1736701373540,0.28781119,694.9,693.85,2.99677704]
[1736701373744,0.28781119,694.9,693.86,2.79504371]
[1736701374941,0.28781119,694.9,693.87,2.99677704]
[1736701375245,0.28781119,694.9,693.88,2.79504371]
[1736701377445,0.28781119,694.9,693.89,2.99677704]
[1736701377646,0.28781119,694.9,693.9,2.79504371]
[1736701378447,0.28781119,694.9,693.91,2.99677704]
[1736701378746,0.28781119,694.9,693.92,2.79504371]
[1736701380247,0.28781119,694.9,693.93,2.99677704]
[1736701380449,0.28781119,694.9,693.94,1.74028434]
[1736701380845,0.28781119,694.9,693.94,2.79678402]
[1736701381751,0.28781119,694.9,693.95,2.99677704]
[1736701381951,0.28781119,694.9,693.96,2.79678402]
[1736701383750,0.28781119,694.9,693.97,2.99677704]
[1736701383949,0.28781119,694.9,693.98,2.79678402]
[1736701385457,0.28781119,694.9,693.99,2.99677704]
[1736701385756,0.28781119,694.9,694.0,1.74028434]
[1736701387158,0.28781119,694.9,693.84,2.7943851]
[1736701388354,1.07781215,695.2,693.84,2.7943851]
[1736701388557,1.07781215,695.27,693.84,2.7943851]
[1736701388756,1.07781215,695.27,693.85,2.99677704]
[1736701388956,1.07781215,695.27,693.86,2.7943851]
[1736701389360,1.50303955,695.45,693.86,2.7943851]
[1736701389361,1.07781215,695.31,693.86,2.7943851]
[1736701389660,0.26448134,695.3,693.86,2.7943851]
[1736701389859,0.26448134,695.3,693.87,0.28823843]
[1736701390060,0.26448134,695.3,693.87,3.28501547]
[1736701390363,1.07781215,695.31,693.88,2.7943851]
[1736701390557,1.36545363,695.31,693.88,2.7943851]
[1736701390752,1.36545363,695.31,693.89,0.28823012]
[1736701391460,1.36545363,695.31,693.89,3.28500716]
[1736701391661,0.28764148,695.31,693.9,2.7943851]
[1736701392162,0.26447403,695.3,693.9,2.7943851]
[1736701392956,0.26447403,695.3,693.91,2.99677704]
[1736701393162,0.28764148,695.31,693.92,2.7943851]
[1736701394660,0.28764148,695.31,693.93,2.99677704]
[1736701394962,0.28764148,695.31,693.94,2.7943851]
[1736701396264,0.28764148,695.31,693.95,2.99677704]
[1736701396461,0.28764148,695.31,693.96,2.7943851]
[1736701397957,0.28764148,695.31,693.97,2.99677704]
[1736701398157,0.28764148,695.31,693.98,1.74028434]
[1736701399361,0.28764148,695.31,693.89,0.28823012]
[1736701406365,0.28764148,695.31,693.89,3.0792658]
[1736701407668,0.28764148,695.31,693.9,2.99677704]
[1736701407869,0.28764148,695.31,693.91,3.07925749]
[1736701408171,0.28764148,695.31,693.92,0.28821766]
[1736701409473,0.28764148,695.31,693.92,3.2849947]
[1736701409674,0.28764148,695.31,693.93,2.79103568]
[1736701409874,0.28764148,695.31,693.94,0.28820935]
[1736701410469,0.28764148,695.31,693.94,3.28498639]
[1736701410669,0.28764148,695.31,693.95,2.79103568]
[1736701410871,0.28764148,695.31,693.96,0.28820104]
[1736701412274,0.28764148,695.31,693.96,3.28497808]
[1736701412470,0.28764148,695.31,693.97,1.74028434]
[1736701412776,0.28764148,695.31,693.98,0.28819274]
[1736701413876,0.28764148,695.31,693.98,3.28496978]
[1736701414073,0.28764148,695.31,693.99,2.78928633]
[1736701414271,0.28764148,695.31,693.99,1.74028434]
[1736701414776,0.28764148,695.31,694.0,0.28818443]
[1736701415874,0.28764148,695.31,694.0,3.07714671]
[1736701416075,0.28764148,695.31,694.01,1.74028434]
[1736701416271,0.28764148,695.31,694.02,0.28817613]
[1736701420681,0.28764148,695.31,694.05,1.29217421]
[1736701420882,0.28764148,695.31,694.06,0.28815952]
[1736701421885,0.28764148,695.31,694.06,3.07711913]
[1736701422285,0.28764148,695.31,694.07,2.99677704]
[1736701422484,0.28764148,695.31,694.08,2.78895961]
[1736701422684,0.28764148,695.31,694.08,1.74028434]
[1736701423385,0.28764148,695.31,694.06,0.28815952]
[1736701425082,0.28764148,695.31,694.06,3.07576515]
[1736701426183,0.28764148,695.31,694.07,2.99677704]
[1736701426387,0.28764148,695.31,694.08,2.02843556]
[1736701426682,0.28764148,695.31,694.09,0.28814707]
[1736701433389,0.28764148,695.31,694.09,3.28492411]
[1736701433689,0.28764148,695.31,694.1,2.78753826]
[1736701433889,0.28764148,695.31,694.1,3.07568117]
[1736701434889,0.28764148,695.31,694.11,2.99677704]
[1736701435092,0.28764148,695.31,694.12,2.78753826]
[1736701436696,0.28764148,695.31,694.13,2.99677704]
[1736701436891,0.28764148,695.31,694.14,2.78753826]
[1736701438893,0.28764148,695.31,694.14,1.74028434]
[1736701439097,0.28764148,695.31,694.14,2.78899919]
[1736701439297,0.28764148,695.31,694.15,2.99677704]
[1736701439497,0.28764148,695.31,694.16,1.74028434]
[1736701439893,0.28764148,695.31,694.16,2.78931748]
[1736701441195,0.28764148,695.31,694.17,2.99677704]
[1736701441395,0.28764148,695.31,694.18,2.78931748]
[1736701442401,0.28764148,695.31,694.19,2.99677704]
[1736701442597,0.28764148,695.31,694.2,2.78931748]
[1736701444899,0.28764148,695.31,694.21,2.99677704]
[1736701445099,0.28764148,695.31,694.22,2.78931748]
[1736701446794,0.28764148,695.31,694.23,2.99677704]
[1736701446997,0.28764148,695.31,694.24,1.74028434]
[1736701447902,0.28764148,695.31,694.24,2.79073063]
[1736701449002,0.28764148,695.31,694.25,2.99677704]
[1736701449203,0.28764148,695.31,694.26,1.74028434]
[1736701450203,0.28764148,695.31,694.26,2.790698]
[1736701450405,0.28764148,695.31,694.27,1.74028434]
[1736701450603,0.28764148,695.31,694.22,2.79065851]
[1736701451606,0.28764148,695.31,694.23,2.99677704]
[1736701451904,0.28764148,695.31,694.24,2.79065851]
[1736701452707,0.28764148,695.31,694.24,1.74028434]
[1736701452907,0.28764148,695.31,694.24,2.79090246]
[1736701453107,0.28764148,695.31,694.25,2.99677704]
[1736701453405,0.28764148,695.31,694.26,1.74028434]
[1736701454808,0.28764148,695.31,694.23,2.79096787]
[1736701456705,0.28764148,695.31,694.24,2.99677704]
[1736701456908,0.28764148,695.31,694.25,1.74028434]
[1736701457310,0.28764148,695.31,694.25,2.79113206]
[1736701458214,0.28764148,695.31,694.26,2.99677704]
[1736701458413,0.28764148,695.31,694.27,1.74028434]
[1736701459814,0.28764148,695.31,694.26,2.99677704]
[1736701460513,0.28764148,695.31,694.21,1.29217421]
[1736701461013,0.28764148,695.31,694.14,1.05097751]
[1736701461312,0.28764148,695.31,694.13,2.78578331]
[1736701462415,0.28764148,695.31,694.14,2.99677704]
[1736701462615,0.28764148,695.31,694.15,2.78578331]
[1736701463709,0.28764148,695.31,694.16,2.99677704]
[1736701463914,0.28764148,695.31,694.17,2.78578331]
[1736701464115,0.28764148,695.31,694.16,2.99677704]
[1736701465018,0.28764148,695.31,694.1,0.28814291]
[1736701487041,0.2645061,695.3,694.1,0.28814291]
[1736701487236,0.28764975,695.29,694.1,0.28814291]
[1736701487436,0.2645061,695.28,694.1,0.28814291]
[1736701487741,0.55216141,695.27,694.1,0.28814291]
[1736701488042,0.28766216,695.26,694.1,0.28814291]
[1736701491545,0.27416142,695.26,694.1,0.28814291]
[1736701497852,0.26451706,695.25,694.1,0.28814291]
[1736701498247,0.28767044,695.24,694.1,0.28814291]
[1736701498452,0.26451706,695.23,694.1,0.28814291]
[1736701498752,0.28767044,695.24,693.67,2.99070841]
[1736701498952,0.28767044,695.24,693.66,1.29217421]
[1736701499149,0.28767044,695.24,693.67,0.28832153]
[1736701500554,0.28767044,695.24,693.67,0.27444377]
[1736701505657,0.26453502,695.23,693.67,0.27444377]
[1736701505855,0.26453005,695.22,693.67,0.27444377]
[1736701506056,0.26453005,695.21,693.67,0.27444377]
[1736701506256,0.28768699,695.2,693.67,0.27444377]
[1736701507456,1.07781215,695.18,693.67,1.56661798]
[1736701507656,0.28769941,695.17,693.67,1.56661798]
[1736701508051,0.28769941,695.17,693.68,1.29217421]
[1736701508252,0.28769941,695.17,693.69,0.28831322]
[1736701508653,0.26453375,695.16,693.69,0.28831322]
[1736701509056,1.07781215,695.12,693.76,1.29217421]
[1736701509651,1.07781215,695.14,693.75,1.29217421]
[1736701510857,1.07781215,695.14,693.76,1.29217421]
[1736701511261,1.36552397,695.14,693.76,1.29217421]
[1736701511657,1.36552397,695.14,693.74,1.29217421]
[1736701512457,1.36552397,695.14,693.74,4.0720185]
[1736701512759,1.36552397,695.14,693.75,1.04833287]
[1736701512955,1.36552397,695.14,693.74,2.77984429]
[1736701513658,1.36552397,695.14,693.75,1.29217421]
[1736701513858,1.36552397,695.14,693.75,2.34050708]
[1736701514554,1.36552397,695.14,693.75,5.32224352]
[1736701514759,1.36552397,695.14,693.76,2.77984429]
[1736701515657,0.26454097,695.13,693.76,2.77984429]
[1736701516159,1.07781215,695.12,693.77,2.98173644]
[1736701516356,1.07781215,695.12,693.78,2.77984429]
[1736701516760,1.07781215,695.11,693.78,2.77984429]
[1736701517360,0.26455196,695.1,693.79,2.98173644]
[1736701517660,1.07781215,695.11,693.8,2.77984429]
[1736701518163,1.07781215,695.09,693.8,2.77984429]
[1736701518959,1.07781215,695.09,693.81,2.98173644]
[1736701519161,1.07781215,695.09,693.82,2.77984429]
[1736701520164,1.07781215,695.08,693.82,2.77984429]
[1736701520665,1.07781215,695.08,693.83,2.98173644]
[1736701520863,1.07781215,695.08,693.84,2.77984429]
[1736701521064,1.07781215,695.13,693.84,2.77984429]
[1736701521264,0.26455004,695.12,693.84,2.77984429]
[1736701521463,0.28772424,695.11,693.84,2.77984429]
[1736701521665,0.26455004,695.1,693.84,2.77984429]
[1736701522259,0.28773252,695.09,693.85,2.98173644]
[1736701522563,0.26455718,695.08,693.86,2.77984429]
[1736701522760,0.28773252,695.09,693.85,2.98173644]
[1736701523963,0.28773252,695.09,693.69,0.28831322]
[1736701527966,0.26458598,695.08,693.69,0.28831322]
[1736701528265,0.28773252,695.09,693.69,0.28831322]
[1736701528466,0.26458699,695.08,693.69,0.28831322]
[1736701529067,1.07781215,695.07,693.69,0.28831322]
[1736701529267,0.26458699,695.06,693.69,0.28831322]
[1736701529461,0.28774908,695.05,693.69,0.28831322]
[1736701530061,1.36556123,695.05,693.69,0.28831322]
[1736701530963,0.28774908,695.05,693.69,0.28831322]
[1736701532867,0.26459047,695.04,693.69,0.28831322]
[1736701533069,0.28775736,695.03,693.69,0.28831322]
[1736701533569,1.36556951,695.03,693.69,0.28831322]
[1736701537268,0.28775736,695.03,693.69,0.28831322]
[1736701541870,0.26463237,695.02,693.69,0.28831322]
[1736701542071,0.28776564,695.01,693.69,0.28831322]
[1736701546569,0.26463285,695.0,693.69,0.28831322]
[1736701546764,0.28777392,694.99,693.69,0.28831322]
[1736701546970,0.26463285,694.98,693.69,0.28831322]
[1736701547172,0.2877822,694.97,693.69,0.28831322]
[1736701547369,0.26463285,694.96,693.69,0.28831322]
[1736701547573,0.28779048,694.95,693.69,0.28831322]
[1736701547770,0.26463285,694.94,693.69,0.28831322]
[1736701547975,0.28779877,694.93,693.69,0.28831322]
[1736701548376,0.26463304,694.92,693.69,0.28831322]
[1736701548971,0.28780705,694.91,693.69,0.28831322]
[1736701550470,0.26463346,694.9,693.69,0.28831322]
[1736701550670,0.28781533,694.89,693.69,0.28831322]
[1736701556775,1.36562748,694.89,693.69,0.28831322]
[1736701557377,0.26463106,694.88,693.69,0.28831322]
[1736701557575,1.36562748,694.89,693.69,0.28831322]
[1736701558482,0.28781533,694.89,693.69,0.28831322]
[1736701568392,1.36562748,694.89,693.69,0.28831322]
[1736701570193,0.28781533,694.89,693.69,0.28831322]
[1736701573600,1.07781215,694.87,693.69,0.28831322]
[1736701574394,1.07781215,694.85,693.69,0.28831322]
[1736701575394,1.07781215,694.87,693.69,0.28831322]
[1736701579903,1.07781215,694.88,693.69,0.28831322]
[1736701580097,1.07781215,694.88,693.69,3.28015462]
[1736701580297,1.07781215,694.88,693.7,2.78951031]
[1736701581903,1.07781215,694.87,693.7,2.78951031]
[1736701582097,1.07781215,694.87,693.71,2.9918414]
[1736701582301,1.07781215,694.87,693.72,2.78951031]
[1736701582503,1.07781215,694.88,693.72,2.78951031]
[1736701583400,1.36562748,694.89,693.72,2.78951031]
[1736701584301,1.36562748,694.89,693.73,2.9918414]
[1736701584496,1.36562748,694.89,693.74,1.73761103]
[1736701585098,1.36562748,694.89,693.74,2.82963127]
[1736701585400,1.07781215,694.88,693.74,2.82963127]
[1736701585603,1.07781215,694.88,693.74,1.73761103]
[1736701586201,1.07781215,694.88,693.69,0.28831322]
[1736701586401,0.28781533,694.89,693.69,0.28831322]
[1736701593010,0.28781533,694.89,693.69,3.28015462]
[1736701593211,0.28781533,694.89,693.7,2.82918678]
[1736701594206,0.28781533,694.89,693.71,2.9918414]
[1736701594511,0.28781533,694.89,693.72,2.82918678]
[1736701595614,0.28781533,694.89,693.73,2.9918414]
[1736701595809,0.28781533,694.89,693.74,2.82918678]
[1736701597410,0.28781533,694.89,693.75,2.9918414]
[1736701597614,0.28781533,694.89,693.76,2.82918678]
[1736701599416,0.28781533,694.89,693.77,2.9918414]
[1736701599615,0.28781533,694.89,693.78,2.82918678]
[1736701600617,0.28781533,694.89,693.79,2.9918414]
[1736701600915,0.28781533,694.89,693.8,2.82918678]
[1736701601713,0.28781533,694.89,693.8,1.73761103]
[1736701602809,0.28781533,694.89,693.69,0.28831322]
[1736701608726,0.28781533,694.89,693.69,3.28015462]
[1736701609024,0.28781533,694.89,693.7,2.82675184]
[1736701609218,0.28781533,694.89,693.71,0.28830491]
[1736701611023,0.28781533,694.89,693.71,3.28014631]
[1736701611319,0.28781533,694.89,693.72,2.82675184]
[1736701611721,0.28781533,694.89,693.75,1.29217421]
[1736701612424,0.28781533,694.89,693.75,5.37315642]
[1736701612620,0.28781533,694.89,693.76,2.82675184]
[1736701614026,0.28781533,694.89,693.77,2.9918414]
[1736701614220,0.28781533,694.89,693.78,2.82675184]
[1736701615424,0.28781533,694.89,693.79,1.29217421]
[1736701615620,0.28781533,694.89,693.79,2.38131502]
[1736701615822,0.28781533,694.89,693.79,5.37315642]
[1736701616020,0.28781533,694.89,693.8,2.82675184]
[1736701617521,0.28781533,694.89,693.81,2.9918414]
[1736701617726,0.28781533,694.89,693.82,2.82675184]
[1736701619330,0.28781533,694.89,693.83,2.9918414]
[1736701619628,0.28781533,694.89,693.84,1.73761103]
[1736701620625,0.28781533,694.89,693.77,2.82585765]
[1736701620926,0.28781533,694.89,693.78,0.28827582]
[1736701621430,0.28781533,694.89,693.78,3.28011722]
[1736701621630,0.28781533,694.89,693.79,1.73761103]
[1736701624031,0.28781533,694.89,693.78,2.02588685]
[1736701624232,0.28781533,694.89,693.78,3.11414671]
[1736701624635,1.07781215,695.11,693.78,3.11414671]
[1736701625235,1.07781215,695.14,693.78,4.40632092]
[1736701625534,1.07781215,695.14,693.79,5.81771229]
[1736701625730,1.07781215,695.14,693.8,3.1141384]
[1736701625928,1.07781215,695.15,693.81,0.28826335]
[1736701626734,1.07781215,695.15,693.81,3.28010475]
[1736701626935,1.07781215,695.15,693.82,2.82587089]
[1736701627134,1.07781215,695.16,693.82,2.82587089]
[1736701627435,1.07781215,695.16,693.83,0.28825504]
[1736701628035,1.07781215,695.17,693.83,0.28825504]
[1736701628227,1.07781215,695.17,693.83,3.28009644]
[1736701628433,1.07781215,695.17,693.84,2.82587089]
[1736701628634,1.07781215,695.17,693.85,0.28824673]
[1736701630040,1.07781215,695.18,693.85,0.28824673]
[1736701630939,1.07781215,695.21,693.85,0.28824673]
[1736701631938,1.07781215,695.2,693.85,0.28824673]
[1736701634943,1.07781215,695.21,693.85,0.28824673]
[1736701636748,1.07781215,695.23,693.85,0.28824673]
[1736701638350,0.28767872,695.22,693.85,0.28824673]
[1736701638550,1.36549087,695.22,693.85,0.28824673]
[1736701639448,1.07781215,695.21,693.85,0.28824673]
[1736701640753,0.28767872,695.22,693.85,0.28824673]
[1736701640953,0.28767872,695.22,693.85,4.36943023]
[1736701641248,0.28767872,695.22,693.86,1.73761103]
[1736701642753,0.28767872,695.22,693.85,0.28824673]
[1736701649357,0.28767872,695.22,693.85,2.02585776]
[1736701650354,0.28767872,695.22,693.85,0.28824673]
[1736701653757,1.07781215,695.2,693.85,0.28824673]
[1736701654765,1.07781215,695.16,693.85,0.28824673]
[1736701655457,0.28770768,695.15,693.85,0.28824673]
[1736701655863,1.07781215,695.08,693.85,0.28824673]
[1736701656564,1.07781215,695.06,693.85,0.28824673]
[1736701657559,1.07781215,695.07,693.85,0.28824673]
[1736701658359,1.07781215,695.06,693.85,0.28824673]
[1736701659266,1.07781215,695.07,693.85,0.28824673]
[1736701660064,1.07781215,695.08,693.85,0.28824673]
[1736701661169,1.07781215,695.07,693.85,0.28824673]
[1736701661969,1.07781215,695.11,693.85,0.28824673]
[1736701663067,0.28772838,695.1,693.85,0.28824673]
[1736701682581,1.36554053,695.1,693.85,0.28824673]
[1736701683680,1.07781215,695.09,693.85,0.28824673]
[1736701683875,0.264555,695.08,693.85,0.28824673]
[1736701684077,1.07781215,695.09,693.85,0.28824673]
[1736701684782,0.28772838,695.1,693.85,0.28824673]
[1736701684783,1.07781215,695.06,693.85,0.28824673]
[1736701685577,1.07781215,695.03,693.85,0.28824673]
[1736701686477,0.2877615,695.02,693.85,0.28824673]
[1736701686983,1.07781215,695.01,693.85,0.28824673]
[1736701687182,1.36557779,695.01,693.85,0.28824673]
[1736701687786,1.07781215,694.97,693.85,0.28824673]
[1736701689586,1.07781215,694.94,693.85,0.28824673]
[1736701690284,1.07781215,694.99,693.85,0.28824673]
[1736701691287,1.36557779,695.01,693.85,0.28824673]
[1736701693491,0.28776564,695.01,693.85,0.28824673]
[1736701700400,1.07781215,694.99,693.85,0.28824673]
[1736701701499,1.07781215,695.0,693.85,0.28824673]
[1736701702202,1.07781215,694.98,693.85,0.28824673]
[1736701704104,0.28776564,695.01,693.85,0.28824673]
[1736701732317,1.07781215,694.97,693.85,0.28824673]
[1736701734912,1.07781215,694.99,693.85,0.28824673]
[1736701740419,1.07781215,694.98,693.85,0.28824673]
[1736701743021,0.28776564,695.01,693.85,0.28824673]
[1736701761146,1.07781215,694.96,693.85,0.28824673]
[1736701762345,1.07781215,694.92,693.85,0.28824673]
[1736701764659,1.07781215,694.91,693.85,0.28824673]
[1736701765458,1.07781215,694.92,693.85,0.28824673]
[1736701766959,1.07781215,694.92,693.85,3.12458646]
[1736701768161,1.07781215,694.95,693.86,2.99563085]
[1736701768358,1.07781215,694.95,693.87,2.83633973]
[1736701769762,1.07781215,694.95,693.88,2.99563085]
[1736701770062,0.28776564,695.01,693.88,2.99563085]
[1736701770063,1.07781215,694.94,693.89,1.74371174]
[1736701770959,1.07781215,694.95,693.89,1.74371174]
[1736701771659,1.07781215,694.95,693.85,0.28824673]
[1736701772756,1.07781215,694.96,693.85,0.28824673]
[1736701776460,1.07781215,694.97,693.85,0.28824673]
[1736701778265,1.07781215,694.95,693.85,0.28824673]
[1736701780763,1.07781215,694.95,693.85,3.12481184]
[1736701781167,1.07781215,694.95,693.86,2.99563085]
[1736701781368,1.07781215,694.95,693.87,2.83656511]
[1736701781762,1.07781215,694.98,693.87,2.83656511]
[1736701782868,1.07781215,694.98,693.88,2.99563085]
[1736701783167,1.07781215,694.98,693.89,2.83656511]
[1736701784370,1.07781215,694.98,693.9,2.99563085]
[1736701784570,1.07781215,694.98,693.91,1.74371174]
[1736701785168,1.07781215,694.96,693.91,1.74371174]
[1736701786070,1.07781215,694.96,693.85,0.28824673]
[1736701789580,0.28776564,695.01,693.85,0.28824673]
[1736701789581,1.07781215,694.95,693.85,0.28824673]
[1736701791681,0.28776564,695.01,693.85,0.28824673]
[1736701810889,0.28776564,695.01,693.85,3.12301393]
[1736701812187,0.28776564,695.01,693.86,3.00165925]
[1736701812385,0.28776564,695.01,693.87,2.8347672]
[1736701813991,0.28776564,695.01,693.88,3.00165925]
[1736701814192,0.28776564,695.01,693.89,2.8347672]
[1736701816394,0.28776564,695.01,693.9,3.00165925]
[1736701816594,0.28776564,695.01,693.91,2.8347672]
[1736701817996,0.28776564,695.01,693.92,3.00165925]
[1736701818193,0.28776564,695.01,693.93,2.8347672]
[1736701819397,0.28776564,695.01,693.94,3.00165925]
[1736701819597,0.28776564,695.01,693.95,2.8347672]
[1736701820997,0.28776564,695.01,693.96,3.00165925]
[1736701821193,0.28776564,695.01,693.97,2.8347672]
[1736701821391,0.28776564,695.01,693.97,1.74273459]
[1736701822897,0.28776564,695.01,693.85,0.28824673]
[1736701833307,0.28776564,695.01,693.95,1.29217421]
[1736701834306,0.28776564,695.01,693.96,1.29217421]
[1736701835607,0.28776564,695.01,693.89,1.74273459]
[1736701835811,0.28776564,695.01,693.89,2.8300359]
[1736701836312,0.28776564,695.01,693.89,1.74273459]
[1736701836512,0.28776564,695.01,693.89,2.82996982]
[1736701836715,0.28776564,695.01,693.85,0.28824673]
[1736701838009,0.28776564,695.01,693.85,1.58042094]
[1736701838212,0.28776564,695.01,693.85,7.4120299]
[1736701838413,0.28776564,695.01,693.86,2.82994971]
[1736701838710,0.28776564,695.01,693.87,0.28823843]
[1736701839314,0.28776564,695.01,693.87,3.11818814]
[1736701839914,0.28776564,695.01,693.87,4.41036235]
[1736701840114,0.28776564,695.01,693.88,5.83160896]
[1736701840314,0.28776564,695.01,693.89,2.82994971]
[1736701841316,0.28776564,695.01,693.89,4.12212392]
[1736701841515,0.28776564,695.01,693.9,1.08721512]
[1736701841909,0.28776564,695.01,693.9,4.08887437]
[1736701842112,0.28776564,695.01,693.91,2.82994971]
[1736701843819,0.28776564,695.01,693.92,3.00165925]
[1736701844019,0.28776564,695.01,693.93,2.82994971]
[1736701844817,0.28776564,695.01,693.94,1.29217421]
[1736701845021,0.28776564,695.01,693.94,2.37938933]
[1736701845820,0.28776564,695.01,694.03,1.29217421]
[1736701848821,0.28776564,695.01,694.0,1.29217421]
[1736701849521,0.28776564,695.01,693.99,1.29217421]
[1736701850223,0.28776564,695.01,693.99,4.12212392]
[1736701850423,0.28776564,695.01,694.0,1.08721512]
[1736701851825,0.28776564,695.01,694.0,4.08887437]
[1736701852124,0.28776564,695.01,694.01,2.83043871]
[1736701853125,0.28776564,695.01,694.02,3.00165925]
[1736701853327,0.28776564,695.01,694.03,2.83043871]
[1736701854726,0.28776564,695.01,694.04,3.00165925]
[1736701855027,0.28776564,695.01,694.05,2.83043871]
[1736701856023,0.28776564,695.01,694.06,3.00165925]
[1736701856229,0.28776564,695.01,694.07,2.83043871]
[1736701857232,0.28776564,695.01,694.08,3.00165925]
[1736701857433,0.28776564,695.01,694.09,1.74273459]
[1736701858133,0.28776564,695.01,694.09,2.8318655]
[1736701858531,0.28776564,695.01,694.1,3.00165925]
[1736701858735,0.28776564,695.01,694.11,1.74273459]
[1736701860935,0.28776564,695.01,694.01,2.83210564]
[1736701862734,0.28776564,695.01,694.02,3.00165925]
[1736701862935,0.28776564,695.01,694.03,2.83210564]
[1736701864236,0.28776564,695.01,694.04,3.00165925]
[1736701864440,0.28776564,695.01,694.05,2.83210564]
[1736701865840,0.28776564,695.01,694.06,3.00165925]
[1736701866041,0.28776564,695.01,694.07,2.83210564]
[1736701867042,0.28776564,695.01,694.08,1.29217421]
[1736701867341,0.28776564,695.01,694.08,2.38154526]
[1736701868142,0.28776564,695.01,694.08,5.38320451]
[1736701868343,0.28776564,695.01,694.09,2.83210564]
[1736701869537,0.28776564,695.01,694.1,3.00165925]
[1736701869738,0.28776564,695.01,694.11,2.83210564]
[1736701871244,0.28776564,695.01,694.12,3.00165925]
[1736701871544,0.28776564,695.01,694.13,2.83210564]
[1736701872947,0.28776564,695.01,694.14,3.00165925]
[1736701873149,0.28776564,695.01,694.15,2.83210564]
[1736701874149,0.28776564,695.01,694.16,3.00165925]
[1736701875446,0.28776564,695.01,694.17,1.74111828]
[1736701875944,0.28776564,695.01,694.03,2.83201969]
[1736701876941,0.28776564,695.01,694.04,1.29217421]
[1736701877143,0.28776564,695.01,694.04,5.38473487]
[1736701877343,0.28776564,695.01,694.05,2.83201969]
[1736701878548,0.28776564,695.01,694.06,3.00165925]
[1736701878748,0.28776564,695.01,694.07,2.83201969]
[1736701879650,0.28776564,695.01,694.08,3.00165925]
[1736701879851,0.28776564,695.01,694.09,2.83201969]
[1736701881553,0.28776564,695.01,694.1,3.00165925]
[1736701881753,0.28776564,695.01,694.11,2.83201969]
[1736701883459,0.28776564,695.01,694.12,3.00165925]
[1736701883659,0.28776564,695.01,694.13,2.83201969]
[1736701884959,0.28776564,695.01,694.14,3.00165925]
[1736701885161,0.28776564,695.01,694.15,2.83201969]
[1736701886663,0.28776564,695.01,694.16,3.00165925]
[1736701886864,0.28776564,695.01,694.17,2.83201969]
[1736701887865,0.28776564,695.01,694.18,3.00165925]
[1736701888065,0.28776564,695.01,694.19,2.83201969]